[Event "POL-chT 1st League 2020"]
[Site "Ustron"]
[Date "2020.09.05"]
[Round "1.12"]
[White "Starosta, Martyna"]
[Black "Moscicka, Pola"]
[Result "0-1"]
[ECO "B34"]
[WhiteElo "2038"]
[BlackElo "1880"]
[Annotator "ChessBase"]
[PlyCount "92"]
[EventDate "2020.09.05"]
[EventType "team-tourn"]
[EventCountry "POL"]
[SourceTitle "playchess.com"]
[Source "ChessBase"]
[SourceQuality "1"]
[TimeControl "40/5400+30:1800+30"]

1. e4 {[%emt 0:00:00]} c5 {[%emt 0:00:00]} 2. Nf3 {[%emt 0:00:00]} Nc6 {[%emt 0:00:00]} 3. d4 {[%emt 0:00:00]} cxd4 {[%emt 0:00:00]} 4. Nxd4 {[%emt 0:00:00]} Nf6 {[%emt 0:00:14]} 5. Nc3 {[%emt 0:00:00]} e5 {[%emt 0:00:10]} 6. Ndb5 {[%emt 0:00:03]} d6 {[%emt 0:00:06]} 7. Nd5 {[%emt 0:00:07]} Nxd5 {[%emt 0:00:09]} 8. exd5 {[%emt 0:00:04]} Nb8 {[%emt 0:00:07]} 9. a4 {[%emt 0:00:06]} Be7 {[%emt 0:00:16]} 10. Be2 {[%emt 0:00:07]} O-O {[%emt 0:00:12]} 11. O-O {[%emt 0:00:04]} Nd7 {[%emt 0:00:09]} 12. Kh1 {[%emt 0:01:54]} a6 {[%emt 0:00:54]} 13. Na3 {[%emt 0:00:11]} f5 {[%emt 0:00:28]} 14. f4 {[%emt 0:00:12]} exf4 {[%emt 0:00:30]} 15. Bxf4 {[%emt 0:01:45]} Nc5 {[%emt 0:00:33]} 16. Nc4 {[%emt 0:05:19]} a5 {[%emt 0:00:29]} 17. Be3 {[%emt 0:07:22]} b6 {[%emt 0:08:05]} 18. b4 {[%emt 0:20:05]} axb4 {[%emt 0:08:01]} 19. a5 {[%emt 0:02:49]} Bf6 {[%emt 0:12:39]} 20. Nxb6 {[%emt 0:03:17]} Bxa1 {[%emt 0:10:25]} 21. Qxa1 {[%emt 0:20:45]} Ra7 {[%emt 0:10:24]} 22. Qb2 {[%emt 0:10:01]} Qe7 {[%emt 0:07:36]} 23. Qd4 {[%emt 0:09:27]} Rxa5 {[%emt 0:08:33]} 24. Nc4 {[%emt 0:04:40]} Ra2 {[%emt 0:03:19]} 25. Nxd6 {[%emt 0:05:40]} Qxd6 {[%emt 0:08:23]} 26. Qxc5 {[%emt 0:02:19]} Qxc5 {[%emt 0:02:04]} 27. Bxc5 {[%emt 0:00:02]} Rd8 {[%emt 0:03:32]} 28. Bd3 {[%emt 0:01:57]} Ba6 {[%emt 0:05:51]} 29. Bxa6 {[%emt 0:00:40]} Rxa6 {[%emt 0:00:06]} 30. Bxb4 {[%emt 0:00:46]} Rxd5 {[%emt 0:01:08]} 31. h3 {[%emt 0:00:22]} Rc6 {[%emt 0:04:06]} 32. Rf2 {[%emt 0:00:36]} Kf7 {[%emt 0:00:42]} 33. Kh2 {[%emt 0:00:37]} Ke6 {[%emt 0:00:48]} 34. Re2+ {[%emt 0:00:31]} Re5 {[%emt 0:01:26]} 35. Rd2 {[%emt 0:00:20]} g5 {[%emt 0:03:22]} 36. Bf8 {[%emt 0:01:40]} h5 {[%emt 0:01:19]} 37. Bg7 {[%emt 0:01:30]} Re4 {[%emt 0:01:03]} 38. c3 {[%emt 0:00:34]} f4 {[%emt 0:00:37]} 39. Rb2 {[%emt 0:01:41]} g4 {[%emt 0:00:35]} 40. hxg4 {[%emt 0:00:00]} hxg4 {[%emt 0:00:00]} 41. Bd4 {[%emt 0:00:28]} Kd5 {[%emt 0:05:59]} 42. Rb5+ {[%emt 0:03:00]} Kc4 {[%emt 0:03:53]} 43. Rh5 {[%emt 0:02:03]} Kd3 {[%emt 0:04:03]} 44. Rh4 {[%emt 0:09:52]} Rg6 {[%emt 0:00:43]} 45. Rh5 {[%emt 0:00:58]} g3+ {[%emt 0:03:07]} 46. Kh3 {[%emt 0:01:18]} Re1 {[%emt 0:00:56]} 0-1

[Event "POL-chT 1st League 2020"]
[Site "Ustron"]
[Date "2020.09.05"]
[Round "1.15"]
[White "Olsen, Filip Boe"]
[Black "Koziol, Kamil"]
[Result "1-0"]
[ECO "D02"]
[WhiteElo "2351"]
[BlackElo "2296"]
[Annotator "ChessBase"]
[PlyCount "97"]
[EventDate "2020.09.05"]
[EventType "team-tourn"]
[EventCountry "POL"]
[SourceTitle "playchess.com"]
[Source "ChessBase"]
[SourceQuality "1"]
[TimeControl "40/5400+30:1800+30"]

1. d4 {[%emt 0:00:00]} d5 {[%emt 0:00:00]} 2. Nf3 {[%emt 0:00:00]} Nf6 {[%emt 0:00:00]} 3. Bf4 {[%emt 0:00:02]} e6 {[%emt 0:00:40]} 4. e3 {[%emt 0:00:12]} c5 {[%emt 0:00:35]} 5. Nbd2 {[%emt 0:00:15]} Nc6 {[%emt 0:00:37]} 6. c3 {[%emt 0:00:11]} Bd6 {[%emt 0:02:49]} 7. Bg3 {[%emt 0:00:11]} Qe7 {[%emt 0:16:38]} 8. Ne5 {[%emt 0:01:53]} Nd7 {[%emt 0:15:37]} 9. Nxc6 {[%emt 0:07:02]} bxc6 {[%emt 0:00:08]} 10. Qa4 {[%emt 0:01:39]} Bb7 {[%emt 0:11:06]} 11. Ba6 {[%emt 0:12:26]} Nb6 {[%emt 0:04:12]} 12. Qa3 {[%emt 0:04:46]} Bxa6 {[%emt 0:07:52]} 13. Qxa6 {[%emt 0:04:57]} O-O {[%emt 0:03:16]} 14. Qa3 {[%emt 0:04:22]} Bxg3 {[%emt 0:10:37]} 15. hxg3 {[%emt 0:00:30]} Rfb8 {[%emt 0:01:08]} 16. O-O-O {[%emt 0:20:51]} a5 {[%emt 0:04:06]} 17. Rh4 {[%emt 0:07:29]} Rb7 {[%emt 0:03:06]} 18. dxc5 {[%emt 0:15:02]} Nd7 {[%emt 0:00:45]} 19. Nb3 {[%emt 0:06:56]} Rb5 {[%emt 0:05:41]} 20. Nd4 {[%emt 0:04:31]} Rxc5 {[%emt 0:00:18]} 21. Nxc6 {[%emt 0:01:00]} Qd6 {[%emt 0:04:24]} 22. Nd4 {[%emt 0:01:07]} Ne5 {[%emt 0:00:06]} 23. Nf3 {[%emt 0:00:45]} Nxf3 {[%emt 0:01:11]} 24. gxf3 {[%emt 0:00:11]} Rac8 {[%emt 0:00:11]} 25. Rc4 {[%emt 0:00:57]} Qb6 {[%emt 0:01:19]} 26. Rxc5 {[%emt 0:00:08]} Rxc5 {[%emt 0:01:05]} 27. Qa4 {[%emt 0:00:40]} Rc8 {[%emt 0:02:06]} 28. f4 {[%emt 0:01:03]} g6 {[%emt 0:02:03]} 29. Qd4 {[%emt 0:00:53]} Qb5 {[%emt 0:01:08]} 30. Qd3 {[%emt 0:02:17]} Qa4 {[%emt 0:00:12]} 31. Kb1 {[%emt 0:00:10]} h5 {[%emt 0:00:48]} 32. b3 {[%emt 0:02:15]} Qa3 {[%emt 0:01:13]} 33. Qd4 {[%emt 0:00:51]} Rb8 {[%emt 0:00:03]} 34. g4 {[%emt 0:00:41]} hxg4 {[%emt 0:01:09]} 35. Rh1 {[%emt 0:00:19]} f6 {[%emt 0:00:14]} 36. Qxf6 {[%emt 0:00:36]} Rxb3+ {[%emt 0:00:06]} 37. axb3 {[%emt 0:00:06]} Qxb3+ {[%emt 0:00:03]} 38. Kc1 {[%emt 0:00:27]} Qa3+ {[%emt 0:00:04]} 39. Kd2 {[%emt 0:00:50]} Qa2+ {[%emt 0:00:40]} 40. Kd3 {[%emt 0:00:00]} Qc4+ {[%emt 0:00:00]} 41. Kd2 {[%emt 0:06:40]} Qa2+ {[%emt 0:00:44]} 42. Ke1 {[%emt 0:00:55]} Qb1+ {[%emt 0:02:19]} 43. Ke2 {[%emt 0:00:12]} Qb5+ {[%emt 0:05:29]} 44. Kd2 {[%emt 0:01:07]} Qb2+ {[%emt 0:01:06]} 45. Kd3 {[%emt 0:00:31]} Qb5+ {[%emt 0:01:48]} 46. Kc2 {[%emt 0:01:39]} Qa4+ {[%emt 0:02:08]} 47. Kb2 {[%emt 0:00:10]} Qb5+ {[%emt 0:00:08]} 48. Kc1 {[%emt 0:00:08]} a4 {[%emt 0:00:07]} 49. Rh8# 1-0

[Event "POL-chT 1st League 2020"]
[Site "Ustron"]
[Date "2020.09.05"]
[Round "1.17"]
[White "Tymrakiewicz, Rafal"]
[Black "Tomaszewski, Kacper"]
[Result "1/2-1/2"]
[ECO "A45"]
[WhiteElo "2245"]
[BlackElo "2341"]
[Annotator "ChessBase"]
[PlyCount "57"]
[EventDate "2020.09.05"]
[EventType "team-tourn"]
[EventCountry "POL"]
[SourceTitle "playchess.com"]
[Source "ChessBase"]
[SourceQuality "1"]
[TimeControl "40/5400+30:1800+30"]

1. d4 {[%emt 0:00:00]} Nf6 {[%emt 0:00:00]} 2. Bg5 {[%emt 0:00:48]} d6 {[%emt 0:00:11]} 3. c4 {[%emt 0:06:30]} c5 {[%emt 0:05:13]} 4. Nc3 {[%emt 0:16:03]} cxd4 {[%emt 0:02:02]} 5. Qxd4 {[%emt 0:00:07]} Nc6 {[%emt 0:00:28]} 6. Qd2 {[%emt 0:00:10]} h6 {[%emt 0:02:50]} 7. Bxf6 {[%emt 0:05:34]} gxf6 {[%emt 0:00:31]} 8. Nf3 {[%emt 0:00:39]} f5 {[%emt 0:03:19]} 9. g3 {[%emt 0:02:42]} Bg7 {[%emt 0:00:47]} 10. Bg2 {[%emt 0:00:25]} O-O {[%emt 0:10:55]} 11. O-O {[%emt 0:01:07]} Qa5 {[%emt 0:00:46]} 12. Rac1 {[%emt 0:06:06]} Be6 {[%emt 0:05:22]} 13. b3 {[%emt 0:01:20]} Rfc8 {[%emt 0:05:11]} 14. e3 {[%emt 0:05:28]} Rab8 {[%emt 0:03:33]} 15. Rfd1 {[%emt 0:02:40]} a6 {[%emt 0:00:55]} 16. Nh4 {[%emt 0:13:27]} Ne5 {[%emt 0:14:26]} 17. Nd5 {[%emt 0:09:17]} Qxd2 {[%emt 0:06:08]} 18. Rxd2 {[%emt 0:00:22]} Kf8 {[%emt 0:05:00]} 19. Nb6 {[%emt 0:03:51]} Rc7 {[%emt 0:02:15]} 20. Rcd1 {[%emt 0:01:55]} Bf6 {[%emt 0:06:52]} 21. Nf3 {[%emt 0:01:38]} Nxf3+ {[%emt 0:00:24]} 22. Bxf3 {[%emt 0:00:03]} Be5 {[%emt 0:00:43]} 23. Bg2 {[%emt 0:02:30]} Ke8 {[%emt 0:00:52]} 24. Rd3 {[%emt 0:02:28]} Rc5 {[%emt 0:03:19]} 25. Kf1 {[%emt 0:03:21]} Kd8 {[%emt 0:06:32]} 26. Kg1 {[%emt 0:02:05]} Ke8 {[%emt 0:01:20]} 27. R1d2 {[%emt 0:01:59]} Rc7 {[%emt 0:01:29]} 28. Rd1 {[%emt 0:01:24]} Rc5 {[%emt 0:00:06]} 29. R1d2 {[%emt 0:01:37]} 1/2-1/2

[Event "POL-chT 1st League 2020"]
[Site "Ustron"]
[Date "2020.09.05"]
[Round "1.18"]
[White "Kucharska, Honorata"]
[Black "Kubicka, Anna"]
[Result "1/2-1/2"]
[ECO "A46"]
[WhiteElo "2237"]
[BlackElo "2264"]
[Annotator "ChessBase"]
[PlyCount "98"]
[EventDate "2020.09.05"]
[EventType "team-tourn"]
[EventCountry "POL"]
[SourceTitle "playchess.com"]
[Source "ChessBase"]
[SourceQuality "1"]
[TimeControl "40/5400+30:1800+30"]

1. d4 {[%emt 0:00:00]} Nf6 {[%emt 0:00:00]} 2. Nf3 {[%emt 0:00:00]} e6 {[%emt 0:00:00]} 3. g3 {[%emt 0:00:09]} c5 {[%emt 0:01:14]} 4. Bg2 {[%emt 0:01:48]} Nc6 {[%emt 0:01:22]} 5. O-O {[%emt 0:04:45]} d5 {[%emt 0:03:27]} 6. c3 {[%emt 0:04:25]} Be7 {[%emt 0:00:26]} 7. Nbd2 {[%emt 0:02:11]} cxd4 {[%emt 0:01:30]} 8. cxd4 {[%emt 0:01:14]} O-O {[%emt 0:00:11]} 9. Nb3 {[%emt 0:02:05]} b6 {[%emt 0:03:34]} 10. Ne5 {[%emt 0:08:40]} Nxe5 {[%emt 0:07:18]} 11. dxe5 {[%emt 0:00:20]} Nd7 {[%emt 0:00:41]} 12. f4 {[%emt 0:09:53]} Ba6 {[%emt 0:03:21]} 13. Be3 {[%emt 0:03:05]} Rc8 {[%emt 0:08:15]} 14. Nd4 {[%emt 0:03:17]} Bc5 {[%emt 0:02:35]} 15. Qd2 {[%emt 0:01:30]} Qe7 {[%emt 0:03:37]} 16. a3 {[%emt 0:01:42]} Bxd4 {[%emt 0:01:01]} 17. Bxd4 {[%emt 0:00:23]} Nc5 {[%emt 0:00:17]} 18. Qe3 {[%emt 0:02:55]} Bc4 {[%emt 0:07:38]} 19. Rad1 {[%emt 0:03:35]} Nb3 {[%emt 0:10:10]} 20. g4 {[%emt 0:03:13]} Rfe8 {[%emt 0:17:24]} 21. Kh1 {[%emt 0:07:06]} Nxd4 {[%emt 0:02:47]} 22. Rxd4 {[%emt 0:00:32]} Ba6 {[%emt 0:00:43]} 23. Qd2 {[%emt 0:06:56]} Rc4 {[%emt 0:04:59]} 24. Rxc4 {[%emt 0:05:08]} Bxc4 {[%emt 0:00:04]} 25. Rd1 {[%emt 0:00:53]} Qh4 {[%emt 0:02:54]} 26. Bf3 {[%emt 0:00:30]} Qf2 {[%emt 0:02:00]} 27. Qd4 {[%emt 0:00:50]} Qxd4 {[%emt 0:01:30]} 28. Rxd4 {[%emt 0:00:06]} f6 {[%emt 0:05:07]} 29. Kg2 {[%emt 0:04:39]} Kf7 {[%emt 0:02:53]} 30. e4 {[%emt 0:01:32]} fxe5 {[%emt 0:01:57]} 31. fxe5 {[%emt 0:00:08]} Rd8 {[%emt 0:00:02]} 32. Kg3 {[%emt 0:04:20]} g5 {[%emt 0:01:06]} 33. Kf2 {[%emt 0:02:35]} Ke7 {[%emt 0:00:37]} 34. Ke3 {[%emt 0:01:08]} dxe4 {[%emt 0:04:35]} 35. Rxd8 {[%emt 0:02:47]} Kxd8 {[%emt 0:00:03]} 36. Bxe4 {[%emt 0:00:18]} h6 {[%emt 0:00:04]} 37. Bf3 {[%emt 0:00:22]} Kc7 {[%emt 0:00:21]} 38. Kd4 {[%emt 0:00:13]} Bb5 {[%emt 0:00:31]} 39. Bd1 {[%emt 0:00:50]} Bf1 {[%emt 0:00:57]} 40. b4 {[%emt 0:00:00]} Bg2 {[%emt 0:00:00]} 41. Be2 {[%emt 0:03:45]} Bc6 {[%emt 0:07:45]} 42. Bc4 {[%emt 0:00:32]} Kd7 {[%emt 0:00:06]} 43. Be2 {[%emt 0:00:07]} Ba4 {[%emt 0:02:23]} 44. Bf3 {[%emt 0:00:36]} Bb3 {[%emt 0:00:48]} 45. Be2 {[%emt 0:00:17]} Ba4 {[%emt 0:08:38]} 46. Bf3 {[%emt 0:00:20]} Bb5 {[%emt 0:00:20]} 47. Bd1 {[%emt 0:00:24]} Bf1 {[%emt 0:05:07]} 48. Bf3 {[%emt 0:00:15]} Kc7 {[%emt 0:01:40]} 49. Bd1 {[%emt 0:00:33]} Bg2 {[%emt 0:03:07]} 1/2-1/2

[Event "POL-chT 1st League 2020"]
[Site "Ustron"]
[Date "2020.09.05"]
[Round "1.21"]
[White "Budrewicz, Krzysztof"]
[Black "Ciesla, Adam"]
[Result "1-0"]
[ECO "A40"]
[WhiteElo "2227"]
[BlackElo "2294"]
[Annotator "ChessBase"]
[PlyCount "87"]
[EventDate "2020.09.05"]
[EventType "team-tourn"]
[EventCountry "POL"]
[SourceTitle "playchess.com"]
[Source "ChessBase"]
[SourceQuality "1"]
[TimeControl "40/5400+30:1800+30"]

1. d4 {[%emt 0:00:00]} g6 {[%emt 0:00:00]} 2. c4 {[%emt 0:00:00]} Bg7 {[%emt 0:00:00]} 3. Nc3 {[%emt 0:00:08]} c5 {[%emt 0:00:03]} 4. d5 {[%emt 0:00:21]} d6 {[%emt 0:00:16]} 5. e4 {[%emt 0:00:28]} e6 {[%emt 0:00:37]} 6. Bd3 {[%emt 0:00:18]} Ne7 {[%emt 0:00:23]} 7. h4 {[%emt 0:02:12]} exd5 {[%emt 0:02:48]} 8. cxd5 {[%emt 0:00:15]} h6 {[%emt 0:03:11]} 9. h5 {[%emt 0:00:36]} a6 {[%emt 0:08:25]} 10. a4 {[%emt 0:03:55]} Nd7 {[%emt 0:01:27]} 11. hxg6 {[%emt 0:24:29]} fxg6 {[%emt 0:01:13]} 12. f4 {[%emt 0:02:48]} Nf6 {[%emt 0:07:01]} 13. Nf3 {[%emt 0:08:56]} Ng4 {[%emt 0:09:37]} 14. Nh2 {[%emt 0:09:48]} h5 {[%emt 0:08:30]} 15. Nf3 {[%emt 0:00:14]} Bd7 {[%emt 0:05:37]} 16. g3 {[%emt 0:06:28]} Rc8 {[%emt 0:08:33]} 17. Qe2 {[%emt 0:01:43]} c4 {[%emt 0:07:54]} 18. Bc2 {[%emt 0:01:01]} b5 {[%emt 0:00:52]} 19. axb5 {[%emt 0:00:09]} axb5 {[%emt 0:00:04]} 20. Ra6 {[%emt 0:01:09]} Ra8 {[%emt 0:02:32]} 21. Rxd6 {[%emt 0:04:11]} b4 {[%emt 0:03:54]} 22. e5 {[%emt 0:11:05]} bxc3 {[%emt 0:01:24]} 23. bxc3 {[%emt 0:00:57]} Qa5 {[%emt 0:03:17]} 24. O-O {[%emt 0:06:09]} Bf5 {[%emt 0:04:43]} 25. Bxf5 {[%emt 0:03:23]} Nxf5 {[%emt 0:04:53]} 26. Re6+ {[%emt 0:01:01]} Kd7 {[%emt 0:01:20]} 27. Rxg6 {[%emt 0:01:10]} Qc5+ {[%emt 0:02:29]} 28. Nd4 {[%emt 0:02:00]} Rhg8 {[%emt 0:01:15]} 29. Rd1 {[%emt 0:02:32]} Bh6 {[%emt 0:04:50]} 30. Rc6 {[%emt 0:01:55]} Qa7 {[%emt 0:02:20]} 31. e6+ {[%emt 0:00:33]} Ke8 {[%emt 0:00:26]} 32. Qxc4 {[%emt 0:00:29]} Nge3 {[%emt 0:01:27]} 33. Bxe3 {[%emt 0:01:24]} Rxg3+ {[%emt 0:00:57]} 34. Kf2 {[%emt 0:01:50]} Rg2+ {[%emt 0:02:56]} 35. Ke1 {[%emt 0:01:20]} Nxe3 {[%emt 0:00:07]} 36. Rc8+ {[%emt 0:00:10]} Ke7 {[%emt 0:00:25]} 37. Rc7+ {[%emt 0:00:08]} Kf6 {[%emt 0:00:47]} 38. Rxa7 {[%emt 0:00:45]} Rxa7 {[%emt 0:00:59]} 39. Qd3 {[%emt 0:02:45]} Bxf4 {[%emt 0:01:13]} 40. Ne2 {[%emt 0:00:00]} Ra2 {[%emt 0:00:00]} 41. Qd4+ {[%emt 0:01:44]} Ke7 {[%emt 0:10:54]} 42. d6+ {[%emt 0:00:17]} Kxe6 {[%emt 0:01:24]} 43. Nxf4+ {[%emt 0:00:09]} Kd7 {[%emt 0:00:05]} 44. Qxe3 {[%emt 0:00:15]} 1-0

[Event "POL-chT 1st League 2020"]
[Site "Ustron"]
[Date "2020.09.05"]
[Round "1.22"]
[White "Tomaszewski, Roman"]
[Black "Reza, Wojciech"]
[Result "0-1"]
[ECO "A19"]
[WhiteElo "2206"]
[BlackElo "2273"]
[Annotator "ChessBase"]
[PlyCount "126"]
[EventDate "2020.09.05"]
[EventType "team-tourn"]
[EventCountry "POL"]
[SourceTitle "playchess.com"]
[Source "ChessBase"]
[SourceQuality "1"]
[TimeControl "40/5400+30:1800+30"]

1. c4 {[%emt 0:00:00]} Nf6 {[%emt 0:00:08]} 2. Nc3 {[%emt 0:00:01]} e6 {[%emt 0:00:42]} 3. e4 {[%emt 0:00:46]} c5 {[%emt 0:00:33]} 4. e5 {[%emt 0:02:35]} Ng8 {[%emt 0:00:05]} 5. Nf3 {[%emt 0:00:10]} Nc6 {[%emt 0:00:33]} 6. d4 {[%emt 0:00:22]} cxd4 {[%emt 0:00:05]} 7. Nxd4 {[%emt 0:00:06]} Nxe5 {[%emt 0:00:22]} 8. Ndb5 {[%emt 0:00:36]} a6 {[%emt 0:03:14]} 9. Nd6+ {[%emt 0:00:21]} Bxd6 {[%emt 0:00:04]} 10. Qxd6 {[%emt 0:00:07]} f6 {[%emt 0:00:03]} 11. Be3 {[%emt 0:22:11]} Ne7 {[%emt 0:00:25]} 12. Bb6 {[%emt 0:01:20]} Nf5 {[%emt 0:00:04]} 13. Bxd8 {[%emt 0:00:07]} Nxd6 {[%emt 0:00:07]} 14. Bc7 {[%emt 0:00:05]} Ke7 {[%emt 0:00:23]} 15. c5 {[%emt 0:22:27]} Ne8 {[%emt 0:05:36]} 16. Bxe5 {[%emt 0:17:20]} fxe5 {[%emt 0:00:13]} 17. Na4 {[%emt 0:00:03]} Rb8 {[%emt 0:09:25]} 18. Nb6 {[%emt 0:00:14]} d5 {[%emt 0:02:21]} 19. cxd6+ {[%emt 0:00:08]} Nxd6 {[%emt 0:00:05]} 20. Rc1 {[%emt 0:03:34]} Rd8 {[%emt 0:02:17]} 21. Rc7+ {[%emt 0:11:25]} Kf6 {[%emt 0:11:40]} 22. Be2 {[%emt 0:03:03]} Ne8 {[%emt 0:01:40]} 23. Rc3 {[%emt 0:00:36]} Bd7 {[%emt 0:08:09]} 24. Rf3+ {[%emt 0:04:13]} Ke7 {[%emt 0:02:50]} 25. Re3 {[%emt 0:00:20]} Bc6 {[%emt 0:04:17]} 26. Bf3 {[%emt 0:02:22]} Bxf3 {[%emt 0:07:30]} 27. Rxf3 {[%emt 0:00:03]} Rd6 {[%emt 0:02:35]} 28. Nc4 {[%emt 0:06:14]} Rc6 {[%emt 0:00:56]} 29. b3 {[%emt 0:00:06]} Nd6 {[%emt 0:01:02]} 30. O-O {[%emt 0:00:13]} Nxc4 {[%emt 0:01:04]} 31. bxc4 {[%emt 0:00:06]} Rxc4 {[%emt 0:01:35]} 32. Rb1 {[%emt 0:01:24]} b5 {[%emt 0:01:26]} 33. Ra3 {[%emt 0:00:05]} Rb6 {[%emt 0:00:52]} 34. Re1 {[%emt 0:00:09]} Rbc6 {[%emt 0:07:09]} 35. Rg3 {[%emt 0:01:32]} Kf6 {[%emt 0:03:17]} 36. Rf3+ {[%emt 0:00:40]} Rf4 {[%emt 0:00:39]} 37. Ra3 {[%emt 0:00:02]} Re4 {[%emt 0:11:16]} 38. Rb1 {[%emt 0:00:08]} Rec4 {[%emt 0:00:47]} 39. Kf1 {[%emt 0:01:35]} e4 {[%emt 0:01:07]} 40. Rb2 {[%emt 0:00:00]} Ke5 {[%emt 0:00:00]} 41. Rd2 {[%emt 0:02:49]} Rc1+ {[%emt 0:13:23]} 42. Ke2 {[%emt 0:00:21]} Rg1 {[%emt 0:04:36]} 43. g3 {[%emt 0:15:14]} Rcc1 {[%emt 0:14:45]} 44. Ke3 {[%emt 0:03:37]} Rge1+ {[%emt 0:01:03]} 45. Re2 {[%emt 0:00:02]} Rxe2+ {[%emt 0:00:50]} 46. Kxe2 {[%emt 0:00:10]} Rc6 {[%emt 0:00:06]} 47. Ke3 {[%emt 0:05:39]} Kd5 {[%emt 0:02:27]} 48. Ra5 {[%emt 0:03:16]} h6 {[%emt 0:01:26]} 49. h4 {[%emt 0:00:06]} Rd6 {[%emt 0:01:31]} 50. Ra3 {[%emt 0:01:51]} e5 {[%emt 0:00:55]} 51. h5 {[%emt 0:01:05]} Rf6 {[%emt 0:00:32]} 52. Ke2 {[%emt 0:00:13]} Kd4 {[%emt 0:01:10]} 53. Ke1 {[%emt 0:00:32]} Rc6 {[%emt 0:01:52]} 54. Kd2 {[%emt 0:00:11]} Rd6 {[%emt 0:01:45]} 55. Kc2 {[%emt 0:04:47]} Rf6 {[%emt 0:00:13]} 56. Kd1 {[%emt 0:00:02]} Rxf2 {[%emt 0:02:49]} 57. Rxa6 {[%emt 0:00:07]} Rf5 {[%emt 0:00:21]} 58. Ke2 {[%emt 0:01:13]} Rxh5 {[%emt 0:00:47]} 59. Rd6+ {[%emt 0:00:24]} Kc5 {[%emt 0:00:27]} 60. Rd7 {[%emt 0:00:45]} Rg5 {[%emt 0:00:13]} 61. Kf2 {[%emt 0:00:02]} e3+ {[%emt 0:00:37]} 62. Kf3 {[%emt 0:01:04]} e2 {[%emt 0:00:07]} 63. Rc7+ {[%emt 0:00:17]} Kd4 {[%emt 0:00:37]} 0-1

[Event "POL-chT 1st League 2020"]
[Site "Ustron"]
[Date "2020.09.05"]
[Round "1.23"]
[White "Renkowski, Piotr"]
[Black "Flis, Jacek"]
[Result "1/2-1/2"]
[ECO "E91"]
[WhiteElo "2149"]
[BlackElo "2214"]
[Annotator "ChessBase"]
[PlyCount "74"]
[EventDate "2020.09.05"]
[EventType "team-tourn"]
[EventCountry "POL"]
[SourceTitle "playchess.com"]
[Source "ChessBase"]
[SourceQuality "1"]
[TimeControl "40/5400+30:1800+30"]

1. d4 {[%emt 0:00:00]} Nf6 {[%emt 0:00:07]} 2. c4 {[%emt 0:00:00]} g6 {[%emt 0:01:21]} 3. Nc3 {[%emt 0:00:16]} Bg7 {[%emt 0:00:08]} 4. e4 {[%emt 0:00:13]} d6 {[%emt 0:00:15]} 5. Nf3 {[%emt 0:00:41]} O-O {[%emt 0:00:21]} 6. Be2 {[%emt 0:00:06]} Nbd7 {[%emt 0:03:11]} 7. O-O {[%emt 0:00:34]} e5 {[%emt 0:00:12]} 8. Qc2 {[%emt 0:01:28]} c6 {[%emt 0:02:29]} 9. Rd1 {[%emt 0:00:50]} Qe7 {[%emt 0:02:02]} 10. Rb1 {[%emt 0:06:54]} Re8 {[%emt 0:04:03]} 11. dxe5 {[%emt 0:07:52]} Nxe5 {[%emt 0:11:02]} 12. h3 {[%emt 0:05:47]} Nxf3+ {[%emt 0:06:12]} 13. Bxf3 {[%emt 0:00:02]} Be6 {[%emt 0:00:34]} 14. b3 {[%emt 0:05:40]} d5 {[%emt 0:15:58]} 15. cxd5 {[%emt 0:19:20]} cxd5 {[%emt 0:00:38]} 16. Bg5 {[%emt 0:10:35]} Qc7 {[%emt 0:10:27]} 17. Qd3 {[%emt 0:12:44]} dxe4 {[%emt 0:04:33]} 18. Nxe4 {[%emt 0:00:19]} Nxe4 {[%emt 0:10:46]} 19. Bxe4 {[%emt 0:00:24]} Qa5 {[%emt 0:07:48]} 20. Qg3 {[%emt 0:09:05]} Rac8 {[%emt 0:10:41]} 21. Bxb7 {[%emt 0:02:39]} Rc2 {[%emt 0:01:04]} 22. a4 {[%emt 0:02:53]} Rc3 {[%emt 0:00:58]} 23. Bd2 {[%emt 0:03:14]} Rxg3 {[%emt 0:00:11]} 24. Bxa5 {[%emt 0:00:02]} Rxb3 {[%emt 0:00:14]} 25. Bc6 {[%emt 0:02:40]} Rc8 {[%emt 0:00:16]} 26. Bb5 {[%emt 0:02:00]} h5 {[%emt 0:00:33]} 27. Kf1 {[%emt 0:01:55]} Rxb1 {[%emt 0:01:49]} 28. Rxb1 {[%emt 0:00:01]} Bc4+ {[%emt 0:01:02]} 29. Ke1 {[%emt 0:02:07]} Rb8 {[%emt 0:01:24]} 30. Rd1 {[%emt 0:02:38]} Bxb5 {[%emt 0:00:26]} 31. axb5 {[%emt 0:00:04]} Rxb5 {[%emt 0:00:08]} 32. Rd8+ {[%emt 0:00:04]} Kh7 {[%emt 0:00:19]} 33. Bd2 {[%emt 0:00:05]} Re5+ {[%emt 0:01:18]} 34. Kd1 {[%emt 0:00:40]} Rf5 {[%emt 0:00:16]} 35. Ke2 {[%emt 0:00:48]} Re5+ {[%emt 0:01:04]} 36. Kd1 {[%emt 0:00:06]} Rf5 {[%emt 0:00:23]} 37. Ke2 {[%emt 0:00:05]} Re5+ {[%emt 0:00:53]} 1/2-1/2

[Event "POL-chT 1st League 2020"]
[Site "Ustron"]
[Date "2020.09.05"]
[Round "1.24"]
[White "Lach, Aleksandra"]
[Black "Dwilewicz, Katarzyna"]
[Result "1-0"]
[ECO "C50"]
[WhiteElo "2188"]
[BlackElo "2134"]
[Annotator "NA"]
[PlyCount "69"]
[EventDate "2020.09.05"]
[EventType "team-tourn"]
[EventCountry "POL"]
[SourceTitle "playchess.com"]
[Source "ChessBase"]
[SourceQuality "1"]
[TimeControl "40/5400+30:1800+30"]

1. e4 {[%emt 0:00:00]} e5 {[%emt 0:00:00]} 2. Nf3 {[%emt 0:00:00]} Nc6 {[%emt 0:00:00]} 3. Bc4 {[%emt 0:00:26]} Bc5 {[%emt 0:00:43]} 4. O-O {[%emt 0:00:19]} Nf6 {[%emt 0:00:07]} 5. d3 {[%emt 0:00:11]} d6 {[%emt 0:00:22]} 6. c3 {[%emt 0:00:29]} a6 {[%emt 0:03:09]} 7. a4 {[%emt 0:00:25]} Ba7 {[%emt 0:00:46]} 8. Re1 {[%emt 0:02:43]} h6 {[%emt 0:01:50]} 9. Nbd2 {[%emt 0:07:21]} O-O {[%emt 0:02:30]} 10. h3 {[%emt 0:00:49]} Ne7 {[%emt 0:02:42]} 11. Bb3 {[%emt 0:01:59]} Ng6 {[%emt 0:00:46]} 12. d4 {[%emt 0:04:50]} Re8 {[%emt 0:06:08]} 13. Bc2 {[%emt 0:02:42]} Nh5 {[%emt 0:08:30]} 14. Nc4 {[%emt 0:22:33]} Be6 {[%emt 0:09:34]} 15. Ne3 {[%emt 0:06:51]} Nhf4 {[%emt 0:03:34]} 16. Nf5 {[%emt 0:01:49]} Qf6 {[%emt 0:05:56]} 17. Be3 {[%emt 0:07:22]} Rad8 {[%emt 0:22:39]} 18. Qc1 {[%emt 0:13:00]} Bb8 {[%emt 0:05:42]} 19. g3 {[%emt 0:09:26]} Nd5 {[%emt 0:18:33]} 20. Bxh6 {[%emt 0:07:06]} gxh6 {[%emt 0:00:25]} 21. Nxh6+ {[%emt 0:00:11]} Kg7 {[%emt 0:01:50]} 22. exd5 {[%emt 0:00:17]} Bxh3 {[%emt 0:03:04]} 23. Ng5 {[%emt 0:00:42]} Rh8 {[%emt 0:01:15]} 24. Nhxf7 {[%emt 0:02:42]} Rdf8 {[%emt 0:00:24]} 25. Bxg6 {[%emt 0:00:51]} Qxg6 {[%emt 0:01:19]} 26. Nxh8 {[%emt 0:00:36]} Rxh8 {[%emt 0:00:36]} 27. Nxh3 {[%emt 0:00:12]} Rxh3 {[%emt 0:00:06]} 28. Kg2 {[%emt 0:00:24]} Qg4 {[%emt 0:00:44]} 29. Qe3 {[%emt 0:01:29]} Ba7 {[%emt 0:00:29]} 30. Rh1 {[%emt 0:01:46]} Rxh1 {[%emt 0:00:22]} 31. Rxh1 {[%emt 0:00:02]} Qg6 {[%emt 0:00:17]} 32. Rh4 {[%emt 0:00:26]} exd4 {[%emt 0:00:40]} 33. Qe7+ {[%emt 0:00:33]} Kg8 {[%emt 0:00:07]} 34. Qd8+ {[%emt 0:00:28]} Kf7 {[%emt 0:00:12]} 35. Rf4+ {[%emt 0:00:07]} 1-0